[Event "December 5 Early 2023"]
[Site "https://www.chess.com"]
[Date "2023.12.05"]
[Round "4"]
[White "Movahed, Sina"]
[Black "Makhnev, Denis"]
[Result "1-0"]
[Board "32"]
[TimeControl "180+1"]
[WhiteFideId "42520835"]
[BlackFideId "13707647"]
[WhiteElo "2919"]
[BlackElo "2685"]
[WhiteTeam "IRI"]
[BlackTeam "KAZ"]
[WhiteClock "0:00:56"]
[BlackClock "0:00:18"]

1. Nf3 {[%clk 0:03:00]}  Nf6 {[%clk 0:02:59]} 2. c4 {[%clk 0:03:01]}  c6 {[%clk 0:02:59]} 3. g3 {[%clk 0:03:00]}  d5 {[%clk 0:02:59]} 4. Bg2 {[%clk 0:03:00]}  dxc4 {[%clk 0:02:58]} 5. O-O {[%clk 0:02:50]}  b5 {[%clk 0:02:57]} 6. b3 {[%clk 0:02:41]}  cxb3 {[%clk 0:02:57]} 7. Qxb3 {[%clk 0:02:42]}  e6 {[%clk 0:02:57]} 8. a4 {[%clk 0:02:40]}  b4 {[%clk 0:02:47]} 9. Ne5 {[%clk 0:02:38]}  Bb7 {[%clk 0:02:46]} 10. a5 {[%clk 0:02:35]}  a6 {[%clk 0:02:24]} 11. Bb2 {[%clk 0:02:26]}  Be7 {[%clk 0:02:23]} 12. d3 {[%clk 0:02:22]}  O-O {[%clk 0:02:23]} 13. Nd2 {[%clk 0:02:23]}  Qc7 {[%clk 0:02:18]} 14. f4 {[%clk 0:02:14]}  c5 {[%clk 0:02:17]} 15. f5 {[%clk 0:02:11]}  Bxg2 {[%clk 0:02:15]} 16. Kxg2 {[%clk 0:02:11]}  exf5 {[%clk 0:02:09]} 17. Rxf5 {[%clk 0:02:10]}  Nc6 {[%clk 0:02:09]} 18. Ndc4 {[%clk 0:01:53]}  Rad8 {[%clk 0:02:03]} 19. Nxc6 {[%clk 0:01:44]}  Qxc6+ {[%clk 0:02:03]} 20. Rf3 {[%clk 0:01:45]}  Qe6 {[%clk 0:01:58]} 21. e4 {[%clk 0:01:41]}  Nd7 {[%clk 0:01:48]} 22. Raf1 {[%clk 0:01:37]}  Bf6 {[%clk 0:01:48]} 23. Bxf6 {[%clk 0:01:36]}  Nxf6 {[%clk 0:01:49]} 24. Rf5 {[%clk 0:01:36]}  Nd7 {[%clk 0:01:25]} 25. R1f3 {[%clk 0:01:32]}  g6 {[%clk 0:01:15]} 26. Rd5 {[%clk 0:01:30]}  Qc6 {[%clk 0:00:43]} 27. Rd6 {[%clk 0:01:07]}  Qc7 {[%clk 0:00:43]} 28. Rxa6 {[%clk 0:01:06]}  Ne5 {[%clk 0:00:40]} 29. Nxe5 {[%clk 0:01:06]}  Qxe5 {[%clk 0:00:40]} 30. Raf6 {[%clk 0:01:06]}  Rd7 {[%clk 0:00:38]} 31. a6 {[%clk 0:01:06]}  Qc3 {[%clk 0:00:37]} 32. Qxc3 {[%clk 0:00:58]}  bxc3 {[%clk 0:00:38]} 33. Rc6 {[%clk 0:00:58]}  Rfd8 {[%clk 0:00:31]} 34. Rxc5 {[%clk 0:00:56]}  Rxd3 {[%clk 0:00:31]} 35. Rxd3 {[%clk 0:00:56]}  Rxd3 {[%clk 0:00:32]} 36. Rc8+ {[%clk 0:00:55]}  Kg7 {[%clk 0:00:18]} 37. a7 {[%clk 0:00:56]} 1-0

[Event "December 5 Early 2023"]
[Site "https://www.chess.com"]
[Date "2023.12.05"]
[Round "4"]
[White "Kazakouski, Valery"]
[Black "Dyachuk, Artem"]
[Result "0-1"]
[Board "36"]
[TimeControl "180+1"]
[WhiteFideId "13507443"]
[BlackFideId "34107924"]
[WhiteElo "2873"]
[BlackElo "2579"]
[WhiteTeam "LTU"]
[BlackTeam "UKR"]
[WhiteClock "0:00:00"]
[BlackClock "0:00:10"]

1. e4 {[%clk 0:02:56]}  e5 {[%clk 0:02:59]} 2. Nf3 {[%clk 0:02:56]}  Nc6 {[%clk 0:03:00]} 3. Bc4 {[%clk 0:02:57]}  Nf6 {[%clk 0:03:00]} 4. d3 {[%clk 0:02:57]}  h6 {[%clk 0:03:00]} 5. c3 {[%clk 0:02:56]}  d6 {[%clk 0:02:59]} 6. a4 {[%clk 0:02:56]}  g6 {[%clk 0:02:59]} 7. a5 {[%clk 0:02:55]}  Bg7 {[%clk 0:02:58]} 8. h3 {[%clk 0:02:48]}  O-O {[%clk 0:02:58]} 9. O-O {[%clk 0:02:49]}  d5 {[%clk 0:02:38]} 10. exd5 {[%clk 0:02:47]}  Nxd5 {[%clk 0:02:39]} 11. Qb3 {[%clk 0:02:41]}  Nde7 {[%clk 0:02:31]} 12. Nbd2 {[%clk 0:02:32]}  Rb8 {[%clk 0:02:18]} 13. Qa2 {[%clk 0:02:15]}  b5 {[%clk 0:02:14]} 14. axb6 {[%clk 0:02:07]}  axb6 {[%clk 0:02:15]} 15. Ne4 {[%clk 0:01:51]}  Bb7 {[%clk 0:02:09]} 16. b4 {[%clk 0:01:38]}  Ra8 {[%clk 0:02:01]} 17. Qb1 {[%clk 0:01:38]}  Kh7 {[%clk 0:01:54]} 18. Ba3 {[%clk 0:01:16]}  Nd5 {[%clk 0:01:44]} 19. b5 {[%clk 0:01:13]}  Nce7 {[%clk 0:01:44]} 20. Qb3 {[%clk 0:01:03]}  f5 {[%clk 0:01:11]} 21. Neg5+ {[%clk 0:00:49]}  hxg5 {[%clk 0:01:09]} 22. Nxg5+ {[%clk 0:00:50]}  Kh8 {[%clk 0:01:07]} 23. Ne6 {[%clk 0:00:48]}  Qd7 {[%clk 0:00:59]} 24. Bxe7 {[%clk 0:00:31]}  Nxe7 {[%clk 0:00:47]} 25. Nxf8 {[%clk 0:00:31]}  Rxf8 {[%clk 0:00:48]} 26. Ra7 {[%clk 0:00:31]}  Qc8 {[%clk 0:00:42]} 27. Rfa1 {[%clk 0:00:29]}  e4 {[%clk 0:00:25]} 28. d4 {[%clk 0:00:25]}  f4 {[%clk 0:00:18]} 29. Qb4 {[%clk 0:00:24]}  Bf6 {[%clk 0:00:14]} 30. Qb3 {[%clk 0:00:17]}  e3 {[%clk 0:00:14]} 31. fxe3 {[%clk 0:00:15]}  f3 {[%clk 0:00:14]} 32. Be6 {[%clk 0:00:14]}  Qb8 {[%clk 0:00:14]} 33. d5 {[%clk 0:00:11]}  c5 {[%clk 0:00:12]} 34. bxc6 {[%clk 0:00:05]}  Qg3 {[%clk 0:00:11]} 35. Qc2 {[%clk 0:00:04]}  Be5 {[%clk 0:00:10]} 36. Rxb7 {[%clk 0:00:00]}  Qh2+ {[%clk 0:00:10]} 0-1

[Event "December 5 Early 2023"]
[Site "https://www.chess.com"]
[Date "2023.12.05"]
[Round "4"]
[White "Novoselov, Roman"]
[Black "Popov, Konstantin"]
[Result "0-1"]
[Board "37"]
[TimeControl "180+1"]
[WhiteFideId "4135067"]
[BlackFideId "34137910"]
[WhiteElo "2573"]
[BlackElo "2868"]
[WhiteTeam "RUS"]
[BlackTeam "FID"]
[WhiteClock "0:00:15"]
[BlackClock "0:01:50"]

1. d4 {[%clk 0:03:00]}  Nf6 {[%clk 0:02:54]} 2. Nc3 {[%clk 0:03:00]}  d5 {[%clk 0:02:54]} 3. Bf4 {[%clk 0:03:00]}  Bf5 {[%clk 0:02:54]} 4. e3 {[%clk 0:03:00]}  c5 {[%clk 0:02:53]} 5. Bd3 {[%clk 0:02:56]}  Bxd3 {[%clk 0:02:51]} 6. Qxd3 {[%clk 0:02:57]}  Nc6 {[%clk 0:02:52]} 7. Nge2 {[%clk 0:02:53]}  e6 {[%clk 0:02:51]} 8. O-O {[%clk 0:02:52]}  Be7 {[%clk 0:02:50]} 9. Rfd1 {[%clk 0:02:48]}  O-O {[%clk 0:02:49]} 10. e4 {[%clk 0:02:46]}  Nb4 {[%clk 0:02:46]} 11. Qd2 {[%clk 0:02:41]}  Nxe4 {[%clk 0:02:44]} 12. Nxe4 {[%clk 0:02:40]}  dxe4 {[%clk 0:02:45]} 13. Be3 {[%clk 0:02:21]}  Qc7 {[%clk 0:02:40]} 14. dxc5 {[%clk 0:02:14]}  Bxc5 {[%clk 0:02:40]} 15. a3 {[%clk 0:01:39]}  Bxe3 {[%clk 0:02:34]} 16. Qxb4 {[%clk 0:01:38]}  Qxc2 {[%clk 0:02:30]} 17. Qe1 {[%clk 0:01:18]}  Bb6 {[%clk 0:02:25]} 18. Rd2 {[%clk 0:01:15]}  Qb3 {[%clk 0:02:23]} 19. Nc3 {[%clk 0:01:06]}  e3 {[%clk 0:02:21]} 20. fxe3 {[%clk 0:01:05]}  Rac8 {[%clk 0:02:19]} 21. Qg3 {[%clk 0:00:59]}  Ba5 {[%clk 0:02:08]} 22. Rad1 {[%clk 0:00:35]}  Bxc3 {[%clk 0:02:03]} 23. bxc3 {[%clk 0:00:36]}  Qxc3 {[%clk 0:02:04]} 24. Rd7 {[%clk 0:00:30]}  Qxa3 {[%clk 0:02:03]} 25. h4 {[%clk 0:00:28]}  Rc1 {[%clk 0:01:53]} 26. h5 {[%clk 0:00:25]}  h6 {[%clk 0:01:52]} 27. Kh2 {[%clk 0:00:24]}  Rxd1 {[%clk 0:01:51]} 28. Rxd1 {[%clk 0:00:15]}  Qc5 {[%clk 0:01:50]} 0-1

[Event "December 5 Early 2023"]
[Site "https://www.chess.com"]
[Date "2023.12.05"]
[Round "4"]
[White "Galchenko, Matvey"]
[Black "Jaiveer Mahendru"]
[Result "1-0"]
[Board "41"]
[TimeControl "180+1"]
[WhiteFideId "24175480"]
[BlackFideId "25611151"]
[WhiteElo "2950"]
[BlackElo "2602"]
[WhiteTeam "FID"]
[BlackTeam "IND"]
[WhiteClock "0:00:05"]
[BlackClock "0:00:01"]

1. e4 {[%clk 0:03:00]}  c5 {[%clk 0:02:59]} 2. c3 {[%clk 0:03:00]}  d5 {[%clk 0:02:59]} 3. exd5 {[%clk 0:03:01]}  Qxd5 {[%clk 0:03:00]} 4. d4 {[%clk 0:03:01]}  Nf6 {[%clk 0:03:00]} 5. Nf3 {[%clk 0:03:02]}  e6 {[%clk 0:03:00]} 6. Na3 {[%clk 0:03:01]}  Nc6 {[%clk 0:02:59]} 7. Be3 {[%clk 0:02:57]}  cxd4 {[%clk 0:02:58]} 8. Nb5 {[%clk 0:02:58]}  Qd8 {[%clk 0:02:57]} 9. Nbxd4 {[%clk 0:02:58]}  Nxd4 {[%clk 0:02:56]} 10. Bxd4 {[%clk 0:02:59]}  Be7 {[%clk 0:02:56]} 11. Bd3 {[%clk 0:02:59]}  O-O {[%clk 0:02:56]} 12. Qe2 {[%clk 0:02:59]}  Qa5 {[%clk 0:02:52]} 13. Ne5 {[%clk 0:02:54]}  Bc5 {[%clk 0:02:46]} 14. Nc4 {[%clk 0:01:35]}  Qc7 {[%clk 0:02:46]} 15. Be5 {[%clk 0:01:35]}  Qe7 {[%clk 0:02:43]} 16. b4 {[%clk 0:01:31]}  b5 {[%clk 0:02:42]} 17. Nd2 {[%clk 0:01:06]}  Bd6 {[%clk 0:02:29]} 18. Bxf6 {[%clk 0:00:41]}  Qxf6 {[%clk 0:02:30]} 19. Qe4 {[%clk 0:00:38]}  Qe5 {[%clk 0:01:39]} 20. Nf3 {[%clk 0:00:33]}  Qxe4+ {[%clk 0:00:42]} 21. Bxe4 {[%clk 0:00:34]}  Rb8 {[%clk 0:00:43]} 22. a4 {[%clk 0:00:33]}  a6 {[%clk 0:00:33]} 23. Nd4 {[%clk 0:00:27]}  Bb7 {[%clk 0:00:32]} 24. Bxb7 {[%clk 0:00:26]}  Rxb7 {[%clk 0:00:33]} 25. axb5 {[%clk 0:00:26]}  axb5 {[%clk 0:00:34]} 26. Ra5 {[%clk 0:00:22]}  Rfb8 {[%clk 0:00:24]} 27. Ke2 {[%clk 0:00:21]}  Bc7 {[%clk 0:00:24]} 28. Ra2 {[%clk 0:00:19]}  Kf8 {[%clk 0:00:23]} 29. Rd1 {[%clk 0:00:18]}  Ke8 {[%clk 0:00:20]} 30. Ra6 {[%clk 0:00:15]}  Rb6 {[%clk 0:00:19]} 31. Ra7 {[%clk 0:00:15]}  R8b7 {[%clk 0:00:20]} 32. Ra2 {[%clk 0:00:14]}  Be5 {[%clk 0:00:19]} 33. Ra8+ {[%clk 0:00:11]}  Ke7 {[%clk 0:00:18]} 34. Rc8 {[%clk 0:00:08]}  Bxd4 {[%clk 0:00:16]} 35. Rxd4 {[%clk 0:00:09]}  h6 {[%clk 0:00:15]} 36. Rc5 {[%clk 0:00:08]}  Rd7 {[%clk 0:00:14]} 37. Rxd7+ {[%clk 0:00:08]}  Kxd7 {[%clk 0:00:15]} 38. Ke3 {[%clk 0:00:09]}  Kd6 {[%clk 0:00:15]} 39. f4 {[%clk 0:00:09]}  f6 {[%clk 0:00:15]} 40. Kd4 {[%clk 0:00:09]}  Kd7 {[%clk 0:00:14]} 41. g4 {[%clk 0:00:08]}  Rd6+ {[%clk 0:00:11]} 42. Ke4 {[%clk 0:00:09]}  Rc6 {[%clk 0:00:11]} 43. Rxb5 {[%clk 0:00:07]}  Rxc3 {[%clk 0:00:11]} 44. Rb7+ {[%clk 0:00:07]}  Kd6 {[%clk 0:00:11]} 45. Rxg7 {[%clk 0:00:07]}  Rc4+ {[%clk 0:00:12]} 46. Kf3 {[%clk 0:00:07]}  Rxb4 {[%clk 0:00:11]} 47. Rg6 {[%clk 0:00:07]}  Rb3+ {[%clk 0:00:10]} 48. Kg2 {[%clk 0:00:08]}  Rb2+ {[%clk 0:00:11]} 49. Kg3 {[%clk 0:00:08]}  Rb3+ {[%clk 0:00:10]} 50. Kh4 {[%clk 0:00:09]}  Ke7 {[%clk 0:00:07]} 51. Rxh6 {[%clk 0:00:09]}  Rb4 {[%clk 0:00:07]} 52. Kg3 {[%clk 0:00:07]}  Rb3+ {[%clk 0:00:08]} 53. Kg2 {[%clk 0:00:07]}  Rb2+ {[%clk 0:00:08]} 54. Kf3 {[%clk 0:00:08]}  Rb3+ {[%clk 0:00:09]} 55. Kf2 {[%clk 0:00:09]}  Rb2+ {[%clk 0:00:09]} 56. Ke3 {[%clk 0:00:10]}  Rb3+ {[%clk 0:00:10]} 57. Ke2 {[%clk 0:00:10]}  Rb2+ {[%clk 0:00:10]} 58. Kd3 {[%clk 0:00:11]}  Rb3+ {[%clk 0:00:10]} 59. Kd4 {[%clk 0:00:11]}  Rb4+ {[%clk 0:00:10]} 60. Ke3 {[%clk 0:00:12]}  Rb3+ {[%clk 0:00:11]} 61. Ke2 {[%clk 0:00:11]}  Rb4 {[%clk 0:00:11]} 62. g5 {[%clk 0:00:09]}  Rxf4 {[%clk 0:00:10]} 63. g6 {[%clk 0:00:10]}  Rg4 {[%clk 0:00:09]} 64. h4 {[%clk 0:00:10]}  f5 {[%clk 0:00:09]} 65. h5 {[%clk 0:00:09]}  Kf6 {[%clk 0:00:08]} 66. Rh7 {[%clk 0:00:09]}  e5 {[%clk 0:00:03]} 67. Rf7+ {[%clk 0:00:06]}  Ke6 {[%clk 0:00:04]} 68. Kf2 {[%clk 0:00:05]}  e4 {[%clk 0:00:04]} 69. Rf8 {[%clk 0:00:05]}  Ke7 {[%clk 0:00:03]} 70. Rf7+ {[%clk 0:00:05]}  Ke6 {[%clk 0:00:03]} 71. Ra7 {[%clk 0:00:05]}  f4 {[%clk 0:00:04]} 72. Ra6+ {[%clk 0:00:05]}  Kf5 {[%clk 0:00:04]} 73. Ra5+ {[%clk 0:00:06]}  Kf6 {[%clk 0:00:04]} 74. Rc5 {[%clk 0:00:04]}  f3 {[%clk 0:00:03]} 75. Ke3 {[%clk 0:00:04]}  Rg2 {[%clk 0:00:03]} 76. Kxe4 {[%clk 0:00:04]}  f2 {[%clk 0:00:03]} 77. Rf5+ {[%clk 0:00:04]}  Kg7 {[%clk 0:00:04]} 78. Ke3 {[%clk 0:00:04]}  Kh6 {[%clk 0:00:04]} 79. Rxf2 {[%clk 0:00:05]}  Rg3+ {[%clk 0:00:04]} 80. Rf3 {[%clk 0:00:04]}  Rg5 {[%clk 0:00:05]} 81. Rh3 {[%clk 0:00:04]}  Re5+ {[%clk 0:00:04]} 82. Kf4 {[%clk 0:00:04]}  Re7 {[%clk 0:00:05]} 83. Kf5 {[%clk 0:00:05]}  Ra7 {[%clk 0:00:05]} 84. Re3 {[%clk 0:00:04]}  Ra5+ {[%clk 0:00:06]} 85. Re5 {[%clk 0:00:05]}  Ra7 {[%clk 0:00:04]} 86. Kf6 {[%clk 0:00:05]}  Ra6+ {[%clk 0:00:04]} 87. Re6 {[%clk 0:00:06]}  Ra7 {[%clk 0:00:05]} 88. Re7 {[%clk 0:00:07]}  Ra6+ {[%clk 0:00:05]} 89. Kf7 {[%clk 0:00:06]}  Ra1 {[%clk 0:00:05]} 90. g7 {[%clk 0:00:06]}  Rf1+ {[%clk 0:00:06]} 91. Ke8 {[%clk 0:00:06]}  Kh7 {[%clk 0:00:05]} 92. Rf7 {[%clk 0:00:04]}  Ra1 {[%clk 0:00:03]} 93. h6 {[%clk 0:00:04]}  Kg8 {[%clk 0:00:02]} 94. Rf8+ {[%clk 0:00:04]}  Kh7 {[%clk 0:00:02]} 95. Rh8+ {[%clk 0:00:04]}  Kg6 {[%clk 0:00:01]} 96. g8=Q+ {[%clk 0:00:05]} 1-0

[Event "December 5 Early 2023"]
[Site "https://www.chess.com"]
[Date "2023.12.05"]
[Round "4"]
[White "Maltsevskaya, Aleksandra"]
[Black "Khismatullin, Denis"]
[Result "0-1"]
[Board "43"]
[TimeControl "180+1"]
[WhiteFideId "24174041"]
[BlackFideId "4142578"]
[WhiteElo "2600"]
[BlackElo "2930"]
[WhiteTeam "POL"]
[BlackTeam "RUS"]
[WhiteClock "0:00:00"]
[BlackClock "0:00:32"]

1. Nf3 {[%clk 0:03:00]}  Nf6 {[%clk 0:02:58]} 2. g3 {[%clk 0:03:00]}  b5 {[%clk 0:02:58]} 3. Bg2 {[%clk 0:03:00]}  Bb7 {[%clk 0:02:58]} 4. O-O {[%clk 0:03:00]}  e6 {[%clk 0:02:58]} 5. d3 {[%clk 0:03:00]}  Be7 {[%clk 0:02:57]} 6. a4 {[%clk 0:02:59]}  b4 {[%clk 0:02:51]} 7. e4 {[%clk 0:02:58]}  O-O {[%clk 0:02:51]} 8. Nbd2 {[%clk 0:02:55]}  d6 {[%clk 0:02:49]} 9. a5 {[%clk 0:02:47]}  c5 {[%clk 0:02:47]} 10. Nc4 {[%clk 0:02:45]}  Nbd7 {[%clk 0:02:33]} 11. a6 {[%clk 0:02:43]}  Bc6 {[%clk 0:02:33]} 12. Na5 {[%clk 0:02:43]}  Bb5 {[%clk 0:02:30]} 13. e5 {[%clk 0:02:28]}  dxe5 {[%clk 0:02:26]} 14. Nd2 {[%clk 0:02:22]}  Qc7 {[%clk 0:02:21]} 15. Bxa8 {[%clk 0:02:19]}  Rxa8 {[%clk 0:02:22]} 16. Qf3 {[%clk 0:02:17]}  Rb8 {[%clk 0:02:17]} 17. Ndc4 {[%clk 0:02:14]}  Nd5 {[%clk 0:02:14]} 18. Nb3 {[%clk 0:02:02]}  Bc6 {[%clk 0:02:08]} 19. Qe2 {[%clk 0:02:02]}  Ba8 {[%clk 0:02:07]} 20. Re1 {[%clk 0:02:00]}  Bf6 {[%clk 0:02:02]} 21. Nbd2 {[%clk 0:01:51]}  Qc6 {[%clk 0:02:00]} 22. Ne4 {[%clk 0:01:49]}  Be7 {[%clk 0:01:57]} 23. f3 {[%clk 0:01:36]}  Nc7 {[%clk 0:01:57]} 24. Kg2 {[%clk 0:01:35]}  Nb5 {[%clk 0:01:54]} 25. Be3 {[%clk 0:01:34]}  f5 {[%clk 0:01:52]} 26. Ned2 {[%clk 0:01:30]}  Bf6 {[%clk 0:01:52]} 27. Na5 {[%clk 0:00:54]}  Qxa6 {[%clk 0:01:48]} 28. Ndb3 {[%clk 0:00:53]}  Nd4 {[%clk 0:01:39]} 29. Bxd4 {[%clk 0:00:48]}  cxd4 {[%clk 0:01:39]} 30. Nc4 {[%clk 0:00:48]}  Qb7 {[%clk 0:01:31]} 31. Ra5 {[%clk 0:00:31]}  g5 {[%clk 0:01:16]} 32. h3 {[%clk 0:00:22]}  h5 {[%clk 0:01:13]} 33. Kf2 {[%clk 0:00:12]}  g4 {[%clk 0:01:11]} 34. hxg4 {[%clk 0:00:11]}  hxg4 {[%clk 0:01:11]} 35. Nc5 {[%clk 0:00:11]}  Nxc5 {[%clk 0:01:03]} 36. Rxc5 {[%clk 0:00:12]}  Qh7 {[%clk 0:01:03]} 37. Kg1 {[%clk 0:00:07]}  Bxf3 {[%clk 0:00:55]} 38. Qh2 {[%clk 0:00:07]}  Qxh2+ {[%clk 0:00:54]} 39. Kxh2 {[%clk 0:00:08]}  e4 {[%clk 0:00:51]} 40. Nd6 {[%clk 0:00:06]}  e3 {[%clk 0:00:46]} 41. Rc8+ {[%clk 0:00:03]}  Rxc8 {[%clk 0:00:46]} 42. Nxc8 {[%clk 0:00:04]}  Bg5 {[%clk 0:00:39]} 43. Nxa7 {[%clk 0:00:04]}  e2 {[%clk 0:00:38]} 44. Nc6 {[%clk 0:00:04]}  e5 {[%clk 0:00:32]} 45. Nxe5 {[%clk 0:00:00]}  Bd2 {[%clk 0:00:32]} 0-1

[Event "December 5 Early 2023"]
[Site "https://www.chess.com"]
[Date "2023.12.05"]
[Round "4"]
[White "Stoleriu, George"]
[Black "Grigoriants, Sergey"]
[Result "0-1"]
[Board "44"]
[TimeControl "180+1"]
[WhiteFideId "1227505"]
[BlackFideId "4130804"]
[WhiteElo "2599"]
[BlackElo "2929"]
[WhiteTeam "ROU"]
[BlackTeam "HUN"]
[WhiteClock "0:00:04"]
[BlackClock "0:00:08"]

1. e4 {[%clk 0:03:00]}  e6 {[%clk 0:02:56]} 2. d4 {[%clk 0:03:00]}  d5 {[%clk 0:02:56]} 3. exd5 {[%clk 0:03:01]}  exd5 {[%clk 0:02:55]} 4. Nf3 {[%clk 0:03:02]}  Bd6 {[%clk 0:02:56]} 5. Bd3 {[%clk 0:03:01]}  Ne7 {[%clk 0:02:55]} 6. O-O {[%clk 0:02:58]}  O-O {[%clk 0:02:53]} 7. h3 {[%clk 0:02:58]}  Bf5 {[%clk 0:02:52]} 8. Re1 {[%clk 0:02:58]}  Nbc6 {[%clk 0:02:48]} 9. c3 {[%clk 0:02:46]}  Qd7 {[%clk 0:02:47]} 10. Ne5 {[%clk 0:02:12]}  Nxe5 {[%clk 0:02:11]} 11. dxe5 {[%clk 0:02:13]}  Bc5 {[%clk 0:02:12]} 12. Be3 {[%clk 0:02:07]}  Bb6 {[%clk 0:02:10]} 13. a4 {[%clk 0:02:02]}  Rae8 {[%clk 0:02:00]} 14. Bxb6 {[%clk 0:01:55]}  axb6 {[%clk 0:02:00]} 15. a5 {[%clk 0:01:00]}  bxa5 {[%clk 0:01:39]} 16. Rxa5 {[%clk 0:00:54]}  c6 {[%clk 0:01:37]} 17. c4 {[%clk 0:00:36]}  dxc4 {[%clk 0:01:12]} 18. Bxc4 {[%clk 0:00:37]}  Qxd1 {[%clk 0:01:12]} 19. Rxd1 {[%clk 0:00:38]}  Ng6 {[%clk 0:01:13]} 20. Nc3 {[%clk 0:00:15]}  Nxe5 {[%clk 0:01:01]} 21. Bf1 {[%clk 0:00:15]}  Bc8 {[%clk 0:00:37]} 22. f4 {[%clk 0:00:13]}  Ng6 {[%clk 0:00:36]} 23. g3 {[%clk 0:00:13]}  Rd8 {[%clk 0:00:30]} 24. Rxd8 {[%clk 0:00:11]}  Rxd8 {[%clk 0:00:31]} 25. Ra8 {[%clk 0:00:11]}  Kf8 {[%clk 0:00:31]} 26. h4 {[%clk 0:00:11]}  Ke7 {[%clk 0:00:31]} 27. h5 {[%clk 0:00:10]}  Nf8 {[%clk 0:00:31]} 28. Ra1 {[%clk 0:00:06]}  Bg4 {[%clk 0:00:29]} 29. Re1+ {[%clk 0:00:07]}  Ne6 {[%clk 0:00:21]} 30. h6 {[%clk 0:00:04]}  gxh6 {[%clk 0:00:21]} 31. Ne4 {[%clk 0:00:05]}  Rd1 {[%clk 0:00:19]} 32. Re3 {[%clk 0:00:04]}  Bh3 {[%clk 0:00:16]} 33. Nc3 {[%clk 0:00:03]}  Ra1 {[%clk 0:00:14]} 34. Rf3 {[%clk 0:00:02]}  Nd4 {[%clk 0:00:12]} 35. Rf2 {[%clk 0:00:03]}  Nf5 {[%clk 0:00:08]} 36. Kh2 {[%clk 0:00:02]}  Bxf1 {[%clk 0:00:08]} 37. g4 {[%clk 0:00:02]}  Ne3 {[%clk 0:00:07]} 38. Kg3 {[%clk 0:00:02]}  Bc4 {[%clk 0:00:07]} 39. Ne4 {[%clk 0:00:02]}  Bd5 {[%clk 0:00:07]} 40. Nc5 {[%clk 0:00:02]}  Rg1+ {[%clk 0:00:07]} 41. Kh2 {[%clk 0:00:03]}  Rh1+ {[%clk 0:00:07]} 42. Kg3 {[%clk 0:00:03]}  Rg1+ {[%clk 0:00:06]} 43. Kh2 {[%clk 0:00:03]}  Rxg4 {[%clk 0:00:07]} 44. f5 {[%clk 0:00:02]}  Kf6 {[%clk 0:00:07]} 45. Nd7+ {[%clk 0:00:02]}  Kg5 {[%clk 0:00:07]} 46. f6 {[%clk 0:00:01]}  Rf4 {[%clk 0:00:06]} 47. Re2 {[%clk 0:00:02]}  Ng4+ {[%clk 0:00:05]} 48. Kg3 {[%clk 0:00:02]}  Nxf6 {[%clk 0:00:06]} 49. Nf8 {[%clk 0:00:02]}  Nh5+ {[%clk 0:00:06]} 50. Kh2 {[%clk 0:00:02]}  Rh4+ {[%clk 0:00:06]} 51. Kg1 {[%clk 0:00:03]}  Rh1+ {[%clk 0:00:06]} 52. Kf2 {[%clk 0:00:04]}  Rh2+ {[%clk 0:00:07]} 53. Ke3 {[%clk 0:00:04]}  Rxe2+ {[%clk 0:00:08]} 54. Kxe2 {[%clk 0:00:05]}  Nf4+ {[%clk 0:00:09]} 55. Ke3 {[%clk 0:00:05]}  Ne6 {[%clk 0:00:08]} 56. Nd7 {[%clk 0:00:05]}  h5 {[%clk 0:00:07]} 57. Ne5 {[%clk 0:00:06]}  f5 {[%clk 0:00:07]} 58. Nf7+ {[%clk 0:00:06]}  Kf6 {[%clk 0:00:07]} 59. Nd6 {[%clk 0:00:07]}  f4+ {[%clk 0:00:08]} 60. Kf2 {[%clk 0:00:07]}  h4 {[%clk 0:00:09]} 61. Nxb7 {[%clk 0:00:08]}  h3 {[%clk 0:00:09]} 62. Kg1 {[%clk 0:00:08]}  Ng5 {[%clk 0:00:08]} 63. Nd6 {[%clk 0:00:08]}  Nf3+ {[%clk 0:00:08]} 64. Kh1 {[%clk 0:00:07]}  Ke5 {[%clk 0:00:07]} 65. Ne8 {[%clk 0:00:07]}  Ng5+ {[%clk 0:00:07]} 66. Kh2 {[%clk 0:00:07]}  f3 {[%clk 0:00:08]} 67. Kg3 {[%clk 0:00:04]}  f2 {[%clk 0:00:08]} 0-1

[Event "December 5 Early 2023"]
[Site "https://www.chess.com"]
[Date "2023.12.05"]
[Round "4"]
[White "Vakhidov, Shahzod"]
[Black "Sychev, Klementy"]
[Result "0-1"]
[Board "48"]
[TimeControl "180+1"]
[WhiteFideId "14205270"]
[BlackFideId "4114060"]
[WhiteElo "2589"]
[BlackElo "2889"]
[WhiteTeam "UZB"]
[BlackTeam "FID"]
[WhiteClock "0:00:01"]
[BlackClock "0:00:09"]

1. d4 {[%clk 0:03:00]}  Nf6 {[%clk 0:02:58]} 2. Nf3 {[%clk 0:03:00]}  g6 {[%clk 0:02:58]} 3. g3 {[%clk 0:03:00]}  Bg7 {[%clk 0:02:58]} 4. Bg2 {[%clk 0:03:00]}  c5 {[%clk 0:02:59]} 5. c4 {[%clk 0:03:01]}  cxd4 {[%clk 0:02:59]} 6. Nxd4 {[%clk 0:03:02]}  h5 {[%clk 0:02:59]} 7. O-O {[%clk 0:02:54]}  h4 {[%clk 0:02:59]} 8. Nc3 {[%clk 0:02:53]}  hxg3 {[%clk 0:02:45]} 9. hxg3 {[%clk 0:02:50]}  Nc6 {[%clk 0:02:45]} 10. Nxc6 {[%clk 0:02:45]}  bxc6 {[%clk 0:02:38]} 11. e4 {[%clk 0:02:45]}  Qa5 {[%clk 0:02:33]} 12. Re1 {[%clk 0:02:29]}  Kf8 {[%clk 0:01:26]} 13. e5 {[%clk 0:01:59]}  Ne8 {[%clk 0:01:25]} 14. Bg5 {[%clk 0:01:54]}  Nc7 {[%clk 0:01:01]} 15. Bxe7+ {[%clk 0:01:29]}  Kxe7 {[%clk 0:01:00]} 16. Qd6+ {[%clk 0:01:29]}  Ke8 {[%clk 0:00:36]} 17. Ne4 {[%clk 0:01:20]}  Ne6 {[%clk 0:00:16]} 18. Nf6+ {[%clk 0:00:48]}  Bxf6 {[%clk 0:00:16]} 19. exf6 {[%clk 0:00:49]}  Qd8 {[%clk 0:00:16]} 20. Rad1 {[%clk 0:00:31]}  Qxf6 {[%clk 0:00:12]} 21. Bxc6 {[%clk 0:00:26]}  dxc6 {[%clk 0:00:13]} 22. Qxc6+ {[%clk 0:00:27]}  Kf8 {[%clk 0:00:13]} 23. Qxa8 {[%clk 0:00:20]}  Kg7 {[%clk 0:00:12]} 24. Qe4 {[%clk 0:00:11]}  Ng5 {[%clk 0:00:12]} 25. Qe7 {[%clk 0:00:03]}  Nf3+ {[%clk 0:00:10]} 26. Kg2 {[%clk 0:00:01]}  Bh3+ {[%clk 0:00:09]} 0-1